Workbook

Sheet CILJEVI
B1: =TODAY() -> 2022-12-15 | C1: CILJEVI | J1: Vežbanje | K1: Dijeta
B2: DATUM POČETKA | C2: DNEVNIK DIJETE I VEŽBANJA
B3: =DatumPočetka+121 -> 2023-04-15 | C3: ANALIZA DIJETE
B4: DATUM ZAVRŠETKA
B5: 220.00
B6: POČETNA TELESNA TEŽINA
B7: 180.00 | C7: ANALIZA VEŽBANJA
B8: KRAJNJA TELESNA TEŽINA
B9: =PočetnaTelesnaTežina-KrajnjaTelesnaTežina -> 40
B10: CILJNI GUBITAK
B11: =DatumZavršetka-DatumPočetka -> 121
B12: DANI ZA GUBITAK
B13: =CiljnaTelesnaTežina/B11 -> 0.33
B14: GUBITAK PO DANU

Sheet DIJETA
B1: DIJETA | G1: Ciljevi | H1: Vežbanje
B2: =Podnaslov -> DNEVNIK DIJETE I VEŽBANJA
B3: DATUM | C3: VREME | D3: OPIS | E3: KALORIJE | F3: UGLJENI HIDRATI | G3: PROTEINI | H3: MAST | I3: BELEŠKE
B4: =DatumPočetka -> 2022-12-15 | C4: 07:00:00 | D4: Kafa | E4: 1 | F4: 0 | G4: 0 | H4: 0 | I4: Jutarnja kafa
B5: =DatumPočetka -> 2022-12-15 | C5: 08:00:00 | D5: Pecivo | E5: 10 | F5: 10 | G5: 2 | H5: 10 | I5: Laki doručak
B6: =DatumPočetka -> 2022-12-15 | C6: 12:00:00 | D6: Ručak | E6: 283 | F6: 46 | G6: 18 | H6: 4 | I6: Sendvič sa ćuretinom
B7: =DatumPočetka -> 2022-12-15 | C7: 19:00:00 | D7: Večera | E7: 500 | F7: 42 | G7: 35 | H7: 25 | I7: Musaka od krompira
B8: =DatumPočetka+1 -> 2022-12-16 | C8: 07:00:00 | D8: Kafa | E8: 1 | F8: 0 | G8: 0 | H8: 0 | I8: Jutarnja kafa
B9: =DatumPočetka+1 -> 2022-12-16 | C9: 08:00:00 | D9: Tost | E9: 10 | F9: 10 | G9: 2 | H9: 10 | I9: Laki doručak
B10: =DatumPočetka+1 -> 2022-12-16 | C10: 12:00:00 | D10: Ručak | E10: 189 | F10: 26 | G10: 3 | H10: 8 | I10: Sendvič
B11: =DatumPočetka+1 -> 2022-12-16 | C11: 19:00:00 | D11: Večera | E11: 477 | F11: 62 | G11: 14 | H11: 21 | I11: Večera
B12: =DatumPočetka+2 -> 2022-12-17 | C12: 07:00:00 | D12: Kafa | E12: 1 | F12: 0 | G12: 0 | H12: 0 | I12: Jutarnja kafa
B13: =DatumPočetka+2 -> 2022-12-17 | C13: 08:00:00 | D13: Pecivo | E13: 245 | F13: 48 | G13: 10 | H13: 2 | I13: Laki doručak
B14: =DatumPočetka+2 -> 2022-12-17 | C14: 12:00:00 | D14: Ručak | E14: 247 | F14: 11 | G14: 43 | H14: 5 | I14: Salata
B15: =DatumPočetka+2 -> 2022-12-17 | C15: 19:00:00 | D15: Večera | E15: 456 | F15: 64 | G15: 32 | H15: 22 | I15: Večera
B16: =DatumPočetka+3 -> 2022-12-18 | C16: 07:00:00 | D16: Tost | E16: 10 | F16: 10 | G16: 2 | H16: 10 | I16: Laki doručak
B17: =DatumPočetka+3 -> 2022-12-18 | C17: 10:00:00 | D17: Kafa | E17: 135 | F17: 12 | G17: 9 | H17: 6 | I17: Kafa sa mlekom
B18: =DatumPočetka+3 -> 2022-12-18 | C18: 12:15:00 | D18: Ručak | E18: 184 | F18: 7 | G18: 5 | H18: 15 | I18: Salata
B19: =DatumPočetka+5 -> 2022-12-20 | C19: 19:00:00 | D19: Večera | E19: 477 | F19: 62 | G19: 14 | H19: 21 | I19: Večera

Sheet VEŽBANJE
B1: VEŽBANJE | F1: Dijeta | G1: Ciljevi
B2: =Podnaslov -> DNEVNIK DIJETE I VEŽBANJA
B3: DATUM | C3: TRAJANJE (MIN) | D3: POTROŠENE KALORIJE | E3: BELEŠKE
B4: =DatumPočetka+4 -> 2022-12-19 | C4: 30 | D4: 120 | E4: Trening na traci za trčanje
B5: =B4+1 -> 2022-12-20 | C5: 60 | D5: 180 | E5: Aerobik niskog intenziteta
B6: =B5+1 -> 2022-12-21 | C6: 60 | D6: 350 | E6: Intenzivni trening
B7: 2022-12-22 | C7: 30 | D7: 150 | E7: Trening na traci za trčanje
B8: 2022-12-23 | C8: 25 | D8: 125 | E8: Trčanje
B9: 2022-12-24 | C9: 20 | D9: 285 | E9: Trening na traci za trčanje
B10: 2022-12-25 | C10: 40 | D10: 205 | E10: Trčanje
B11: 2022-12-26 | C11: 30 | D11: 335 | E11: Trčanje
B12: 2022-12-27 | C12: 40 | D12: 175 | E12: Trčanje
B13: 2022-12-28 | C13: 45 | D13: 325 | E13: Trening na traci za trčanje
B14: 2022-12-29 | C14: 40 | D14: 270 | E14: Trčanje
B15: 2022-12-30 | C15: 20 | D15: 295 | E15: Trening na traci za trčanje
B16: 2022-12-31 | C16: 45 | D16: 350 | E16: Trčanje
B17: 2023-01-01 | C17: 35 | D17: 320 | E17: Trčanje
B18: 2023-01-02 | C18: 40 | D18: 290 | E18: Trčanje
B19: =B18+1 -> 2023-01-03 | C19: 25 | D19: 265 | E19: Trening na traci za trčanje
B20: 2023-01-04 | C20: 20 | D20: 195 | E20: Trčanje

Sheet Izračunavanja grafikona (hidden)
B2: PODACI ZA PRAVLJENJE GRAFIKONA ANALIZE DIJETE
B4: Početni red | C4: =ROW(Dijeta[[#Headers],[DATUM]])+1 -> 4 | D4: DATUM | E4: DAN | F4: MAST | G4: PROTEINI | H4: UGLJENI HIDRATI | I4: KALORIJE | J4: Br.
B5: Poslednji unos dijete | C5: =MATCH(9.99E+307,Dijeta[DATUM])+PočetakRedaDijete-1 -> 19 | D5: =IFERROR(IF(INDEX(Dijeta[],PoslednjiKrajDijete-PočetakRedaDijete-J5,1)<>"",INDEX(Dijeta[],PoslednjiKrajDijete-PočetakRedaDijete-J5,1),""),"") -> 2022-12-15 | E5: =UPPER(TEXT(D5,"DDD")) -> ČET | F5: =IFERROR((IF(INDEX(Dijeta[],PoslednjiKrajDijete-PočetakRedaDijete-J5,1)<>"",INDEX(Dijeta[],PoslednjiKrajDijete-PočetakRedaDijete-J5,7),NA())),NA()) -> 3.5 | G5: =IFERROR((IF(INDEX(Dijeta[],PoslednjiKrajDijete-PočetakRedaDijete-J5,1)<>"",INDEX(Dijeta[],PoslednjiKrajDijete-PočetakRedaDijete-J5,6),NA())),NA()) -> 18 | H5: =IFERROR((IF(INDEX(Dijeta[],PoslednjiKrajDijete-PočetakRedaDijete-J5,1)<>"",INDEX(Dijeta[],PoslednjiKrajDijete-PočetakRedaDijete-J5,5),NA())),NA()) -> 46 | I5: =IFERROR((IF(INDEX(Dijeta[],PoslednjiKrajDijete-PočetakRedaDijete-J5,1)<>"",INDEX(Dijeta[],PoslednjiKrajDijete-PočetakRedaDijete-J5,4),NA())),NA()) -> 283 | J5: 12
D6: =IFERROR(IF(INDEX(Dijeta[],PoslednjiKrajDijete-PočetakRedaDijete-J6,1)<>"",INDEX(Dijeta[],PoslednjiKrajDijete-PočetakRedaDijete-J6,1),""),"") -> 2022-12-15 | E6: ČET | F6: =IFERROR((IF(INDEX(Dijeta[],PoslednjiKrajDijete-PočetakRedaDijete-J6,1)<>"",INDEX(Dijeta[],PoslednjiKrajDijete-PočetakRedaDijete-J6,7),NA())),NA()) -> 25 | G6: =IFERROR((IF(INDEX(Dijeta[],PoslednjiKrajDijete-PočetakRedaDijete-J6,1)<>"",INDEX(Dijeta[],PoslednjiKrajDijete-PočetakRedaDijete-J6,6),NA())),NA()) -> 35 | H6: =IFERROR((IF(INDEX(Dijeta[],PoslednjiKrajDijete-PočetakRedaDijete-J6,1)<>"",INDEX(Dijeta[],PoslednjiKrajDijete-PočetakRedaDijete-J6,5),NA())),NA()) -> 42 | I6: =IFERROR((IF(INDEX(Dijeta[],PoslednjiKrajDijete-PočetakRedaDijete-J6,1)<>"",INDEX(Dijeta[],PoslednjiKrajDijete-PočetakRedaDijete-J6,4),NA())),NA()) -> 500 | J6: 11
D7: =IFERROR(IF(INDEX(Dijeta[],PoslednjiKrajDijete-PočetakRedaDijete-J7,1)<>"",INDEX(Dijeta[],PoslednjiKrajDijete-PočetakRedaDijete-J7,1),""),"") -> 2022-12-16 | E7: PET | F7: =IFERROR((IF(INDEX(Dijeta[],PoslednjiKrajDijete-PočetakRedaDijete-J7,1)<>"",INDEX(Dijeta[],PoslednjiKrajDijete-PočetakRedaDijete-J7,7),NA())),NA()) -> 0 | G7: =IFERROR((IF(INDEX(Dijeta[],PoslednjiKrajDijete-PočetakRedaDijete-J7,1)<>"",INDEX(Dijeta[],PoslednjiKrajDijete-PočetakRedaDijete-J7,6),NA())),NA()) -> 0 | H7: =IFERROR((IF(INDEX(Dijeta[],PoslednjiKrajDijete-PočetakRedaDijete-J7,1)<>"",INDEX(Dijeta[],PoslednjiKrajDijete-PočetakRedaDijete-J7,5),NA())),NA()) -> 0 | I7: =IFERROR((IF(INDEX(Dijeta[],PoslednjiKrajDijete-PočetakRedaDijete-J7,1)<>"",INDEX(Dijeta[],PoslednjiKrajDijete-PočetakRedaDijete-J7,4),NA())),NA()) -> 1 | J7: 10
D8: =IFERROR(IF(INDEX(Dijeta[],PoslednjiKrajDijete-PočetakRedaDijete-J8,1)<>"",INDEX(Dijeta[],PoslednjiKrajDijete-PočetakRedaDijete-J8,1),""),"") -> 2022-12-16 | E8: PET | F8: =IFERROR((IF(INDEX(Dijeta[],PoslednjiKrajDijete-PočetakRedaDijete-J8,1)<>"",INDEX(Dijeta[],PoslednjiKrajDijete-PočetakRedaDijete-J8,7),NA())),NA()) -> 10 | G8: =IFERROR((IF(INDEX(Dijeta[],PoslednjiKrajDijete-PočetakRedaDijete-J8,1)<>"",INDEX(Dijeta[],PoslednjiKrajDijete-PočetakRedaDijete-J8,6),NA())),NA()) -> 2 | H8: =IFERROR((IF(INDEX(Dijeta[],PoslednjiKrajDijete-PočetakRedaDijete-J8,1)<>"",INDEX(Dijeta[],PoslednjiKrajDijete-PočetakRedaDijete-J8,5),NA())),NA()) -> 10 | I8: =IFERROR((IF(INDEX(Dijeta[],PoslednjiKrajDijete-PočetakRedaDijete-J8,1)<>"",INDEX(Dijeta[],PoslednjiKrajDijete-PočetakRedaDijete-J8,4),NA())),NA()) -> 10 | J8: 9
D9: =IFERROR(IF(INDEX(Dijeta[],PoslednjiKrajDijete-PočetakRedaDijete-J9,1)<>"",INDEX(Dijeta[],PoslednjiKrajDijete-PočetakRedaDijete-J9,1),""),"") -> 2022-12-16 | E9: PET | F9: =IFERROR((IF(INDEX(Dijeta[],PoslednjiKrajDijete-PočetakRedaDijete-J9,1)<>"",INDEX(Dijeta[],PoslednjiKrajDijete-PočetakRedaDijete-J9,7),NA())),NA()) -> 8 | G9: =IFERROR((IF(INDEX(Dijeta[],PoslednjiKrajDijete-PočetakRedaDijete-J9,1)<>"",INDEX(Dijeta[],PoslednjiKrajDijete-PočetakRedaDijete-J9,6),NA())),NA()) -> 3 | H9: =IFERROR((IF(INDEX(Dijeta[],PoslednjiKrajDijete-PočetakRedaDijete-J9,1)<>"",INDEX(Dijeta[],PoslednjiKrajDijete-PočetakRedaDijete-J9,5),NA())),NA()) -> 26 | I9: =IFERROR((IF(INDEX(Dijeta[],PoslednjiKrajDijete-PočetakRedaDijete-J9,1)<>"",INDEX(Dijeta[],PoslednjiKrajDijete-PočetakRedaDijete-J9,4),NA())),NA()) -> 189 | J9: 8
D10: =IFERROR(IF(INDEX(Dijeta[],PoslednjiKrajDijete-PočetakRedaDijete-J10,1)<>"",INDEX(Dijeta[],PoslednjiKrajDijete-PočetakRedaDijete-J10,1),""),"") -> 2022-12-16 | E10: PET | F10: =IFERROR((IF(INDEX(Dijeta[],PoslednjiKrajDijete-PočetakRedaDijete-J10,1)<>"",INDEX(Dijeta[],PoslednjiKrajDijete-PočetakRedaDijete-J10,7),NA())),NA()) -> 21 | G10: =IFERROR((IF(INDEX(Dijeta[],PoslednjiKrajDijete-PočetakRedaDijete-J10,1)<>"",INDEX(Dijeta[],PoslednjiKrajDijete-PočetakRedaDijete-J10,6),NA())),NA()) -> 13.5 | H10: =IFERROR((IF(INDEX(Dijeta[],PoslednjiKrajDijete-PočetakRedaDijete-J10,1)<>"",INDEX(Dijeta[],PoslednjiKrajDijete-PočetakRedaDijete-J10,5),NA())),NA()) -> 62 | I10: =IFERROR((IF(INDEX(Dijeta[],PoslednjiKrajDijete-PočetakRedaDijete-J10,1)<>"",INDEX(Dijeta[],PoslednjiKrajDijete-PočetakRedaDijete-J10,4),NA())),NA()) -> 477 | J10: 7
D11: =IFERROR(IF(INDEX(Dijeta[],PoslednjiKrajDijete-PočetakRedaDijete-J11,1)<>"",INDEX(Dijeta[],PoslednjiKrajDijete-PočetakRedaDijete-J11,1),""),"") -> 2022-12-17 | E11: SUB | F11: =IFERROR((IF(INDEX(Dijeta[],PoslednjiKrajDijete-PočetakRedaDijete-J11,1)<>"",INDEX(Dijeta[],PoslednjiKrajDijete-PočetakRedaDijete-J11,7),NA())),NA()) -> 0 | G11: =IFERROR((IF(INDEX(Dijeta[],PoslednjiKrajDijete-PočetakRedaDijete-J11,1)<>"",INDEX(Dijeta[],PoslednjiKrajDijete-PočetakRedaDijete-J11,6),NA())),NA()) -> 0 | H11: =IFERROR((IF(INDEX(Dijeta[],PoslednjiKrajDijete-PočetakRedaDijete-J11,1)<>"",INDEX(Dijeta[],PoslednjiKrajDijete-PočetakRedaDijete-J11,5),NA())),NA()) -> 0 | I11: =IFERROR((IF(INDEX(Dijeta[],PoslednjiKrajDijete-PočetakRedaDijete-J11,1)<>"",INDEX(Dijeta[],PoslednjiKrajDijete-PočetakRedaDijete-J11,4),NA())),NA()) -> 1 | J11: 6
D12: =IFERROR(IF(INDEX(Dijeta[],PoslednjiKrajDijete-PočetakRedaDijete-J12,1)<>"",INDEX(Dijeta[],PoslednjiKrajDijete-PočetakRedaDijete-J12,1),""),"") -> 2022-12-17 | E12: SUB | F12: =IFERROR((IF(INDEX(Dijeta[],PoslednjiKrajDijete-PočetakRedaDijete-J12,1)<>"",INDEX(Dijeta[],PoslednjiKrajDijete-PočetakRedaDijete-J12,7),NA())),NA()) -> 1.5 | G12: =IFERROR((IF(INDEX(Dijeta[],PoslednjiKrajDijete-PočetakRedaDijete-J12,1)<>"",INDEX(Dijeta[],PoslednjiKrajDijete-PočetakRedaDijete-J12,6),NA())),NA()) -> 10 | H12: =IFERROR((IF(INDEX(Dijeta[],PoslednjiKrajDijete-PočetakRedaDijete-J12,1)<>"",INDEX(Dijeta[],PoslednjiKrajDijete-PočetakRedaDijete-J12,5),NA())),NA()) -> 48 | I12: =IFERROR((IF(INDEX(Dijeta[],PoslednjiKrajDijete-PočetakRedaDijete-J12,1)<>"",INDEX(Dijeta[],PoslednjiKrajDijete-PočetakRedaDijete-J12,4),NA())),NA()) -> 245 | J12: 5
D13: =IFERROR(IF(INDEX(Dijeta[],PoslednjiKrajDijete-PočetakRedaDijete-J13,1)<>"",INDEX(Dijeta[],PoslednjiKrajDijete-PočetakRedaDijete-J13,1),""),"") -> 2022-12-17 | E13: SUB | F13: =IFERROR((IF(INDEX(Dijeta[],PoslednjiKrajDijete-PočetakRedaDijete-J13,1)<>"",INDEX(Dijeta[],PoslednjiKrajDijete-PočetakRedaDijete-J13,7),NA())),NA()) -> 5 | G13: =IFERROR((IF(INDEX(Dijeta[],PoslednjiKrajDijete-PočetakRedaDijete-J13,1)<>"",INDEX(Dijeta[],PoslednjiKrajDijete-PočetakRedaDijete-J13,6),NA())),NA()) -> 43 | H13: =IFERROR((IF(INDEX(Dijeta[],PoslednjiKrajDijete-PočetakRedaDijete-J13,1)<>"",INDEX(Dijeta[],PoslednjiKrajDijete-PočetakRedaDijete-J13,5),NA())),NA()) -> 11 | I13: =IFERROR((IF(INDEX(Dijeta[],PoslednjiKrajDijete-PočetakRedaDijete-J13,1)<>"",INDEX(Dijeta[],PoslednjiKrajDijete-PočetakRedaDijete-J13,4),NA())),NA()) -> 247 | J13: 4
D14: =IFERROR(IF(INDEX(Dijeta[],PoslednjiKrajDijete-PočetakRedaDijete-J14,1)<>"",INDEX(Dijeta[],PoslednjiKrajDijete-PočetakRedaDijete-J14,1),""),"") -> 2022-12-17 | E14: SUB | F14: =IFERROR((IF(INDEX(Dijeta[],PoslednjiKrajDijete-PočetakRedaDijete-J14,1)<>"",INDEX(Dijeta[],PoslednjiKrajDijete-PočetakRedaDijete-J14,7),NA())),NA()) -> 22 | G14: =IFERROR((IF(INDEX(Dijeta[],PoslednjiKrajDijete-PočetakRedaDijete-J14,1)<>"",INDEX(Dijeta[],PoslednjiKrajDijete-PočetakRedaDijete-J14,6),NA())),NA()) -> 32 | H14: =IFERROR((IF(INDEX(Dijeta[],PoslednjiKrajDijete-PočetakRedaDijete-J14,1)<>"",INDEX(Dijeta[],PoslednjiKrajDijete-PočetakRedaDijete-J14,5),NA())),NA()) -> 64 | I14: =IFERROR((IF(INDEX(Dijeta[],PoslednjiKrajDijete-PočetakRedaDijete-J14,1)<>"",INDEX(Dijeta[],PoslednjiKrajDijete-PočetakRedaDijete-J14,4),NA())),NA()) -> 456 | J14: 3
D15: =IFERROR(IF(INDEX(Dijeta[],PoslednjiKrajDijete-PočetakRedaDijete-J15,1)<>"",INDEX(Dijeta[],PoslednjiKrajDijete-PočetakRedaDijete-J15,1),""),"") -> 2022-12-18 | E15: NED | F15: =IFERROR((IF(INDEX(Dijeta[],PoslednjiKrajDijete-PočetakRedaDijete-J15,1)<>"",INDEX(Dijeta[],PoslednjiKrajDijete-PočetakRedaDijete-J15,7),NA())),NA()) -> 10 | G15: =IFERROR((IF(INDEX(Dijeta[],PoslednjiKrajDijete-PočetakRedaDijete-J15,1)<>"",INDEX(Dijeta[],PoslednjiKrajDijete-PočetakRedaDijete-J15,6),NA())),NA()) -> 2 | H15: =IFERROR((IF(INDEX(Dijeta[],PoslednjiKrajDijete-PočetakRedaDijete-J15,1)<>"",INDEX(Dijeta[],PoslednjiKrajDijete-PočetakRedaDijete-J15,5),NA())),NA()) -> 10 | I15: =IFERROR((IF(INDEX(Dijeta[],PoslednjiKrajDijete-PočetakRedaDijete-J15,1)<>"",INDEX(Dijeta[],PoslednjiKrajDijete-PočetakRedaDijete-J15,4),NA())),NA()) -> 10 | J15: 2
D16: =IFERROR(IF(INDEX(Dijeta[],PoslednjiKrajDijete-PočetakRedaDijete-J16,1)<>"",INDEX(Dijeta[],PoslednjiKrajDijete-PočetakRedaDijete-J16,1),""),"") -> 2022-12-18 | E16: NED | F16: =IFERROR((IF(INDEX(Dijeta[],PoslednjiKrajDijete-PočetakRedaDijete-J16,1)<>"",INDEX(Dijeta[],PoslednjiKrajDijete-PočetakRedaDijete-J16,7),NA())),NA()) -> 5.51 | G16: =IFERROR((IF(INDEX(Dijeta[],PoslednjiKrajDijete-PočetakRedaDijete-J16,1)<>"",INDEX(Dijeta[],PoslednjiKrajDijete-PočetakRedaDijete-J16,6),NA())),NA()) -> 8.81 | H16: =IFERROR((IF(INDEX(Dijeta[],PoslednjiKrajDijete-PočetakRedaDijete-J16,1)<>"",INDEX(Dijeta[],PoslednjiKrajDijete-PočetakRedaDijete-J16,5),NA())),NA()) -> 12.36 | I16: =IFERROR((IF(INDEX(Dijeta[],PoslednjiKrajDijete-PočetakRedaDijete-J16,1)<>"",INDEX(Dijeta[],PoslednjiKrajDijete-PočetakRedaDijete-J16,4),NA())),NA()) -> 135 | J16: 1
D17: =IFERROR(IF(INDEX(Dijeta[],PoslednjiKrajDijete-PočetakRedaDijete-J17,1)<>"",INDEX(Dijeta[],PoslednjiKrajDijete-PočetakRedaDijete-J17,1),""),"") -> 2022-12-18 | E17: NED | F17: =IFERROR((IF(INDEX(Dijeta[],PoslednjiKrajDijete-PočetakRedaDijete-J17,1)<>"",INDEX(Dijeta[],PoslednjiKrajDijete-PočetakRedaDijete-J17,7),NA())),NA()) -> 15 | G17: =IFERROR((IF(INDEX(Dijeta[],PoslednjiKrajDijete-PočetakRedaDijete-J17,1)<>"",INDEX(Dijeta[],PoslednjiKrajDijete-PočetakRedaDijete-J17,6),NA())),NA()) -> 5.43 | H17: =IFERROR((IF(INDEX(Dijeta[],PoslednjiKrajDijete-PočetakRedaDijete-J17,1)<>"",INDEX(Dijeta[],PoslednjiKrajDijete-PočetakRedaDijete-J17,5),NA())),NA()) -> 7 | I17: =IFERROR((IF(INDEX(Dijeta[],PoslednjiKrajDijete-PočetakRedaDijete-J17,1)<>"",INDEX(Dijeta[],PoslednjiKrajDijete-PočetakRedaDijete-J17,4),NA())),NA()) -> 184 | J17: 0
D18: =IFERROR(IF(INDEX(Dijeta[],PoslednjiKrajDijete-PočetakRedaDijete-J18,1)<>"",INDEX(Dijeta[],PoslednjiKrajDijete-PočetakRedaDijete-J18,1)),"") -> 2022-12-20 | E18: UTO | F18: =IFERROR((IF(INDEX(Dijeta[],PoslednjiKrajDijete-PočetakRedaDijete-J18,1)<>"",INDEX(Dijeta[],PoslednjiKrajDijete-PočetakRedaDijete-J18,7),NA())),NA()) -> 21 | G18: =IFERROR((IF(INDEX(Dijeta[],PoslednjiKrajDijete-PočetakRedaDijete-J18,1)<>"",INDEX(Dijeta[],PoslednjiKrajDijete-PočetakRedaDijete-J18,6),NA())),NA()) -> 13.5 | H18: =IFERROR((IF(INDEX(Dijeta[],PoslednjiKrajDijete-PočetakRedaDijete-J18,1)<>"",INDEX(Dijeta[],PoslednjiKrajDijete-PočetakRedaDijete-J18,5),NA())),NA()) -> 62 | I18: =IFERROR((IF(INDEX(Dijeta[],PoslednjiKrajDijete-PočetakRedaDijete-J18,1)<>"",INDEX(Dijeta[],PoslednjiKrajDijete-PočetakRedaDijete-J18,4),NA())),NA()) -> 477 | J18: -1
B20: PODACI ZA PRAVLJENJE GRAFIKONA ANALIZE VEŽBANJA
B22: Početni red | C22: =ROW(Vežbanje[[#Headers],[DATUM]])+1 -> 4 | D22: DATUM | E22: DAN | F22: TRAJANJE (MIN) | G22: POTROŠENE KALORIJE | H22: Br.
B23: Poslednji unos vežbanja | C23: =MATCH(9.99E+307,Vežbanje[DATUM])+PočetakRedaVežbanja-1 -> 20 | D23: =IFERROR(IF(INDEX(Vežbanje[],KrajPoslednjegVežbanja-PočetakRedaVežbanja-H23,1)<>"",INDEX(Vežbanje[],KrajPoslednjegVežbanja-PočetakRedaVežbanja-H23,1)),"") -> 2023-01-04 | E23: =UPPER(TEXT(D23,"DDD")) -> SRE | F23: =IFERROR((IF(INDEX(Vežbanje[],KrajPoslednjegVežbanja-PočetakRedaVežbanja-H23,1)<>"",INDEX(Vežbanje[],KrajPoslednjegVežbanja-PočetakRedaVežbanja-H23,2),0)),0) -> 20 | G23: =IFERROR((IF(INDEX(Vežbanje[],KrajPoslednjegVežbanja-PočetakRedaVežbanja-H23,2)<>"",INDEX(Vežbanje[],KrajPoslednjegVežbanja-PočetakRedaVežbanja-H23,3),0)),0) -> 195 | H23: -1
D24: =IFERROR(IF(INDEX(Vežbanje[],KrajPoslednjegVežbanja-PočetakRedaVežbanja-H24,1)<>"",INDEX(Vežbanje[],KrajPoslednjegVežbanja-PočetakRedaVežbanja-H24,1)),"") -> 2023-01-03 | E24: UTO | F24: =IFERROR((IF(INDEX(Vežbanje[],KrajPoslednjegVežbanja-PočetakRedaVežbanja-H24,1)<>"",INDEX(Vežbanje[],KrajPoslednjegVežbanja-PočetakRedaVežbanja-H24,2),0)),0) -> 25 | G24: =IFERROR((IF(INDEX(Vežbanje[],KrajPoslednjegVežbanja-PočetakRedaVežbanja-H24,2)<>"",INDEX(Vežbanje[],KrajPoslednjegVežbanja-PočetakRedaVežbanja-H24,3),0)),0) -> 265 | H24: 0
D25: =IFERROR(IF(INDEX(Vežbanje[],KrajPoslednjegVežbanja-PočetakRedaVežbanja-H25,1)<>"",INDEX(Vežbanje[],KrajPoslednjegVežbanja-PočetakRedaVežbanja-H25,1)),"") -> 2023-01-02 | E25: PON | F25: =IFERROR((IF(INDEX(Vežbanje[],KrajPoslednjegVežbanja-PočetakRedaVežbanja-H25,1)<>"",INDEX(Vežbanje[],KrajPoslednjegVežbanja-PočetakRedaVežbanja-H25,2),0)),0) -> 40 | G25: =IFERROR((IF(INDEX(Vežbanje[],KrajPoslednjegVežbanja-PočetakRedaVežbanja-H25,2)<>"",INDEX(Vežbanje[],KrajPoslednjegVežbanja-PočetakRedaVežbanja-H25,3),0)),0) -> 290 | H25: 1
D26: =IFERROR(IF(INDEX(Vežbanje[],KrajPoslednjegVežbanja-PočetakRedaVežbanja-H26,1)<>"",INDEX(Vežbanje[],KrajPoslednjegVežbanja-PočetakRedaVežbanja-H26,1)),"") -> 2023-01-01 | E26: NED | F26: =IFERROR((IF(INDEX(Vežbanje[],KrajPoslednjegVežbanja-PočetakRedaVežbanja-H26,1)<>"",INDEX(Vežbanje[],KrajPoslednjegVežbanja-PočetakRedaVežbanja-H26,2),0)),0) -> 35 | G26: =IFERROR((IF(INDEX(Vežbanje[],KrajPoslednjegVežbanja-PočetakRedaVežbanja-H26,2)<>"",INDEX(Vežbanje[],KrajPoslednjegVežbanja-PočetakRedaVežbanja-H26,3),0)),0) -> 320 | H26: 2
D27: =IFERROR(IF(INDEX(Vežbanje[],KrajPoslednjegVežbanja-PočetakRedaVežbanja-H27,1)<>"",INDEX(Vežbanje[],KrajPoslednjegVežbanja-PočetakRedaVežbanja-H27,1)),"") -> 2022-12-31 | E27: SUB | F27: =IFERROR((IF(INDEX(Vežbanje[],KrajPoslednjegVežbanja-PočetakRedaVežbanja-H27,1)<>"",INDEX(Vežbanje[],KrajPoslednjegVežbanja-PočetakRedaVežbanja-H27,2),0)),0) -> 45 | G27: =IFERROR((IF(INDEX(Vežbanje[],KrajPoslednjegVežbanja-PočetakRedaVežbanja-H27,2)<>"",INDEX(Vežbanje[],KrajPoslednjegVežbanja-PočetakRedaVežbanja-H27,3),0)),0) -> 350 | H27: 3
D28: =IFERROR(IF(INDEX(Vežbanje[],KrajPoslednjegVežbanja-PočetakRedaVežbanja-H28,1)<>"",INDEX(Vežbanje[],KrajPoslednjegVežbanja-PočetakRedaVežbanja-H28,1)),"") -> 2022-12-30 | E28: PET | F28: =IFERROR((IF(INDEX(Vežbanje[],KrajPoslednjegVežbanja-PočetakRedaVežbanja-H28,1)<>"",INDEX(Vežbanje[],KrajPoslednjegVežbanja-PočetakRedaVežbanja-H28,2),0)),0) -> 20 | G28: =IFERROR((IF(INDEX(Vežbanje[],KrajPoslednjegVežbanja-PočetakRedaVežbanja-H28,2)<>"",INDEX(Vežbanje[],KrajPoslednjegVežbanja-PočetakRedaVežbanja-H28,3),0)),0) -> 295 | H28: 4
D29: =IFERROR(IF(INDEX(Vežbanje[],KrajPoslednjegVežbanja-PočetakRedaVežbanja-H29,1)<>"",INDEX(Vežbanje[],KrajPoslednjegVežbanja-PočetakRedaVežbanja-H29,1)),"") -> 2022-12-29 | E29: ČET | F29: =IFERROR((IF(INDEX(Vežbanje[],KrajPoslednjegVežbanja-PočetakRedaVežbanja-H29,1)<>"",INDEX(Vežbanje[],KrajPoslednjegVežbanja-PočetakRedaVežbanja-H29,2),0)),0) -> 40 | G29: =IFERROR((IF(INDEX(Vežbanje[],KrajPoslednjegVežbanja-PočetakRedaVežbanja-H29,2)<>"",INDEX(Vežbanje[],KrajPoslednjegVežbanja-PočetakRedaVežbanja-H29,3),0)),0) -> 270 | H29: 5
D30: =IFERROR(IF(INDEX(Vežbanje[],KrajPoslednjegVežbanja-PočetakRedaVežbanja-H30,1)<>"",INDEX(Vežbanje[],KrajPoslednjegVežbanja-PočetakRedaVežbanja-H30,1)),"") -> 2022-12-28 | E30: SRE | F30: =IFERROR((IF(INDEX(Vežbanje[],KrajPoslednjegVežbanja-PočetakRedaVežbanja-H30,1)<>"",INDEX(Vežbanje[],KrajPoslednjegVežbanja-PočetakRedaVežbanja-H30,2),0)),0) -> 45 | G30: =IFERROR((IF(INDEX(Vežbanje[],KrajPoslednjegVežbanja-PočetakRedaVežbanja-H30,2)<>"",INDEX(Vežbanje[],KrajPoslednjegVežbanja-PočetakRedaVežbanja-H30,3),0)),0) -> 325 | H30: 6
D31: =IFERROR(IF(INDEX(Vežbanje[],KrajPoslednjegVežbanja-PočetakRedaVežbanja-H31,1)<>"",INDEX(Vežbanje[],KrajPoslednjegVežbanja-PočetakRedaVežbanja-H31,1)),"") -> 2022-12-27 | E31: UTO | F31: =IFERROR((IF(INDEX(Vežbanje[],KrajPoslednjegVežbanja-PočetakRedaVežbanja-H31,1)<>"",INDEX(Vežbanje[],KrajPoslednjegVežbanja-PočetakRedaVežbanja-H31,2),0)),0) -> 40 | G31: =IFERROR((IF(INDEX(Vežbanje[],KrajPoslednjegVežbanja-PočetakRedaVežbanja-H31,2)<>"",INDEX(Vežbanje[],KrajPoslednjegVežbanja-PočetakRedaVežbanja-H31,3),0)),0) -> 175 | H31: 7
D32: =IFERROR(IF(INDEX(Vežbanje[],KrajPoslednjegVežbanja-PočetakRedaVežbanja-H32,1)<>"",INDEX(Vežbanje[],KrajPoslednjegVežbanja-PočetakRedaVežbanja-H32,1)),"") -> 2022-12-26 | E32: PON | F32: =IFERROR((IF(INDEX(Vežbanje[],KrajPoslednjegVežbanja-PočetakRedaVežbanja-H32,1)<>"",INDEX(Vežbanje[],KrajPoslednjegVežbanja-PočetakRedaVežbanja-H32,2),0)),0) -> 30 | G32: =IFERROR((IF(INDEX(Vežbanje[],KrajPoslednjegVežbanja-PočetakRedaVežbanja-H32,2)<>"",INDEX(Vežbanje[],KrajPoslednjegVežbanja-PočetakRedaVežbanja-H32,3),0)),0) -> 335 | H32: 8
D33: =IFERROR(IF(INDEX(Vežbanje[],KrajPoslednjegVežbanja-PočetakRedaVežbanja-H33,1)<>"",INDEX(Vežbanje[],KrajPoslednjegVežbanja-PočetakRedaVežbanja-H33,1)),"") -> 2022-12-25 | E33: NED | F33: =IFERROR((IF(INDEX(Vežbanje[],KrajPoslednjegVežbanja-PočetakRedaVežbanja-H33,1)<>"",INDEX(Vežbanje[],KrajPoslednjegVežbanja-PočetakRedaVežbanja-H33,2),0)),0) -> 40 | G33: =IFERROR((IF(INDEX(Vežbanje[],KrajPoslednjegVežbanja-PočetakRedaVežbanja-H33,2)<>"",INDEX(Vežbanje[],KrajPoslednjegVežbanja-PočetakRedaVežbanja-H33,3),0)),0) -> 205 | H33: 9
D34: =IFERROR(IF(INDEX(Vežbanje[],KrajPoslednjegVežbanja-PočetakRedaVežbanja-H34,1)<>"",INDEX(Vežbanje[],KrajPoslednjegVežbanja-PočetakRedaVežbanja-H34,1)),"") -> 2022-12-24 | E34: SUB | F34: =IFERROR((IF(INDEX(Vežbanje[],KrajPoslednjegVežbanja-PočetakRedaVežbanja-H34,1)<>"",INDEX(Vežbanje[],KrajPoslednjegVežbanja-PočetakRedaVežbanja-H34,2),0)),0) -> 20 | G34: =IFERROR((IF(INDEX(Vežbanje[],KrajPoslednjegVežbanja-PočetakRedaVežbanja-H34,2)<>"",INDEX(Vežbanje[],KrajPoslednjegVežbanja-PočetakRedaVežbanja-H34,3),0)),0) -> 285 | H34: 10
D35: =IFERROR(IF(INDEX(Vežbanje[],KrajPoslednjegVežbanja-PočetakRedaVežbanja-H35,1)<>"",INDEX(Vežbanje[],KrajPoslednjegVežbanja-PočetakRedaVežbanja-H35,1)),"") -> 2022-12-23 | E35: PET | F35: =IFERROR((IF(INDEX(Vežbanje[],KrajPoslednjegVežbanja-PočetakRedaVežbanja-H35,1)<>"",INDEX(Vežbanje[],KrajPoslednjegVežbanja-PočetakRedaVežbanja-H35,2),0)),0) -> 25 | G35: =IFERROR((IF(INDEX(Vežbanje[],KrajPoslednjegVežbanja-PočetakRedaVežbanja-H35,2)<>"",INDEX(Vežbanje[],KrajPoslednjegVežbanja-PočetakRedaVežbanja-H35,3),0)),0) -> 125 | H35: 11
D36: =IFERROR(IF(INDEX(Vežbanje[],KrajPoslednjegVežbanja-PočetakRedaVežbanja-H36,1)<>"",INDEX(Vežbanje[],KrajPoslednjegVežbanja-PočetakRedaVežbanja-H36,1)),"") -> 2022-12-22 | E36: ČET | F36: =IFERROR((IF(INDEX(Vežbanje[],KrajPoslednjegVežbanja-PočetakRedaVežbanja-H36,1)<>"",INDEX(Vežbanje[],KrajPoslednjegVežbanja-PočetakRedaVežbanja-H36,2),0)),0) -> 30 | G36: =IFERROR((IF(INDEX(Vežbanje[],KrajPoslednjegVežbanja-PočetakRedaVežbanja-H36,2)<>"",INDEX(Vežbanje[],KrajPoslednjegVežbanja-PočetakRedaVežbanja-H36,3),0)),0) -> 150 | H36: 12
